bitfinex-derivatives/quotes_BNBF0:USTF0_20250807
["timestamp","ask_amount","ask_price","bid_price","bid_amount"]
[1754609640457,0.84193301,786.51,785.55,1.88078448]
[1754609640659,0.84193301,786.5,785.62,0.85078448]
[1754609640858,0.84193301,786.49,785.62,0.85078448]
[1754609641063,0.84193301,786.48,785.62,0.85078448]
[1754609641262,0.84193301,786.47,785.62,0.85078448]
[1754609641459,0.84193301,786.46,785.62,0.85078448]
[1754609641662,0.84193301,786.45,785.62,0.85078448]
[1754609641868,0.84193301,786.44,785.62,0.85078448]
[1754609642157,0.84193301,786.43,785.62,0.85078448]
[1754609642358,0.84193301,786.42,785.63,1.017]
[1754609642558,0.84193301,786.41,785.63,1.017]
[1754609642762,0.84193301,786.4,785.63,1.017]
[1754609642959,0.84193301,786.39,785.63,1.017]
[1754609643159,0.84193301,786.38,785.63,1.017]
[1754609643464,0.84161164,786.37,785.63,1.017]
[1754609643763,0.84161164,786.36,785.63,1.017]
[1754609643959,0.84161164,786.35,785.63,1.017]
[1754609644163,0.84161164,786.34,785.63,1.017]
[1754609644364,0.84161164,786.33,785.63,1.017]
[1754609644562,0.84161164,786.32,785.63,1.017]
[1754609644758,0.84161164,786.31,785.63,1.017]
[1754609644957,0.84161164,786.3,785.63,1.017]
[1754609645258,0.84161164,786.29,785.63,1.017]
[1754609645464,0.84161164,786.28,785.63,1.017]
[1754609645759,0.84161164,786.27,785.63,1.017]
[1754609645962,0.84161164,786.26,785.63,1.017]
[1754609646263,0.84161164,786.25,785.63,1.017]
[1754609646464,0.84161164,786.24,785.63,1.017]
[1754609646659,0.84161164,786.23,785.63,1.017]
[1754609646862,0.84161164,786.22,785.63,1.017]
[1754609647165,0.84161164,786.21,785.63,1.017]
[1754609647358,0.84161164,786.2,785.63,1.017]
[1754609647558,0.84161164,786.19,785.63,1.017]
[1754609647760,0.84161164,786.18,785.63,1.017]
[1754609647958,0.84161164,786.17,785.63,1.017]
[1754609648163,0.84161164,786.16,785.63,1.017]
[1754609648363,0.84161164,786.15,785.63,1.017]
[1754609648663,0.84161164,786.14,785.63,1.017]
[1754609648863,0.84161164,786.13,785.63,1.017]
[1754609649164,0.22135363,786.56,785.63,1.017]
[1754609649365,0.84172778,786.55,785.63,1.017]
[1754609649564,0.84172778,786.54,785.63,1.017]
[1754609649764,0.84172778,786.53,785.63,1.017]
[1754609650061,0.84172778,786.52,785.63,1.017]
[1754609650260,0.84172778,786.51,785.63,1.017]
[1754609650457,0.84172778,786.5,785.63,1.017]
[1754609650663,0.84172778,786.49,785.63,1.017]
[1754609650960,0.84172778,786.48,785.63,1.017]
[1754609651160,0.84172778,786.47,785.63,1.017]
[1754609651362,0.84172778,786.46,785.63,1.017]
[1754609651560,0.84172778,786.45,785.63,1.017]
[1754609651758,0.84172778,786.44,785.63,1.017]
[1754609651960,0.84172778,786.43,785.63,1.017]
[1754609652261,0.84172778,786.42,785.63,1.017]
[1754609652460,0.84172778,786.41,785.63,1.017]
[1754609652660,0.84172778,786.4,785.63,1.017]
[1754609652862,0.84172778,786.39,785.63,1.017]
[1754609653063,0.84172778,786.38,785.63,1.017]
[1754609653266,0.84172778,786.37,785.63,1.017]
[1754609653462,0.84172778,786.36,785.63,1.017]
[1754609653663,0.84172778,786.35,785.63,1.017]
[1754609653869,0.84172778,786.34,785.63,1.017]
[1754609654067,0.84172778,786.33,785.63,1.017]
[1754609654261,0.84172778,786.32,785.63,1.017]
[1754609654563,0.84172778,786.31,785.63,1.017]
[1754609654767,0.84172778,786.3,785.63,1.017]
[1754609654967,0.84172778,786.29,785.63,1.017]
[1754609655264,0.22135363,786.56,785.63,1.017]
[1754609655466,0.84221145,786.55,785.64,1.09]
[1754609655668,0.84221145,786.54,785.64,1.09]
[1754609655868,0.84221145,786.53,785.64,1.09]
[1754609656064,0.84221145,786.52,785.64,1.09]
[1754609656365,0.84221145,786.51,785.64,1.09]
[1754609656569,0.84221145,786.5,785.64,1.09]
[1754609656766,0.84221145,786.49,785.64,1.09]
[1754609656970,0.84221145,786.48,785.64,1.09]
[1754609657270,0.84221145,786.47,785.64,1.09]
[1754609657466,0.84221145,786.46,785.64,1.09]
[1754609657770,0.84221145,786.45,785.64,1.09]
[1754609657970,0.84221145,786.44,785.64,1.09]
[1754609658267,0.84221145,786.43,785.64,1.09]
[1754609658470,0.84221145,786.42,785.64,1.09]
[1754609658668,0.84221145,786.41,785.64,1.09]
[1754609658868,0.84221145,786.4,785.64,1.09]
[1754609659167,0.84221145,786.39,785.64,1.09]
[1754609659369,0.84221145,786.38,785.64,1.09]
[1754609659570,0.84221145,786.37,785.64,1.09]
[1754609659768,0.84221145,786.36,785.65,0.758]
[1754609659971,0.84221145,786.35,785.65,0.758]
[1754609660169,0.84221145,786.34,785.65,0.758]
[1754609660372,0.84221145,786.33,785.65,0.758]
[1754609660671,0.84221145,786.32,785.65,0.758]
[1754609660968,0.84221145,786.31,785.65,0.758]
[1754609661171,0.84221145,786.3,785.65,0.758]
[1754609661368,0.84221145,786.29,785.65,0.758]
[1754609661672,0.84221145,786.28,785.65,0.758]
[1754609661872,0.84221145,786.27,785.65,0.758]
[1754609662172,0.84221145,786.26,785.65,0.758]
[1754609662373,0.84221145,786.25,785.65,0.758]
[1754609662674,0.84221145,786.24,785.65,0.758]
[1754609662872,0.84221145,786.23,785.65,0.758]
[1754609663172,0.84221145,786.22,785.65,0.758]
[1754609663374,0.84221145,786.21,785.65,0.758]
[1754609663674,0.84221145,786.2,785.65,0.758]
[1754609663870,0.84221145,786.19,785.65,0.758]
[1754609664076,0.84221145,786.18,785.65,0.758]
[1754609664375,0.84221145,786.17,785.65,0.758]
[1754609664569,0.84221145,786.16,785.65,0.758]
[1754609664774,0.84221145,786.15,785.65,0.758]
[1754609664975,0.84221145,786.14,785.65,0.758]
[1754609665172,0.84221145,786.13,785.65,0.758]
[1754609665376,0.84221145,786.12,785.65,0.758]
[1754609665673,0.84221145,786.11,785.65,0.758]
[1754609665975,0.84221145,786.1,785.65,0.758]
[1754609666176,0.84221145,786.09,785.65,0.758]
[1754609666376,0.8528601,786.37,785.65,0.758]
[1754609666573,0.84346505,786.36,785.65,0.758]
[1754609666771,0.84346505,786.35,785.65,0.758]
[1754609667077,0.84346505,786.34,785.65,0.758]
[1754609667371,0.84346505,786.33,785.65,0.758]
[1754609667576,0.84346505,786.32,785.65,0.758]
[1754609667772,0.84346505,786.31,785.65,0.758]
[1754609667974,0.84346505,786.3,785.65,0.758]
[1754609668177,0.84346505,786.29,785.65,0.758]
[1754609668376,0.84346505,786.28,785.65,0.758]
[1754609668574,0.84346505,786.27,785.65,0.758]
[1754609668779,0.84346505,786.26,785.65,0.758]
[1754609668979,0.84346505,786.25,785.65,0.758]
[1754609669177,0.84346505,786.24,785.65,0.758]
[1754609669376,0.84346505,786.23,785.65,0.758]
[1754609669681,0.84346505,786.22,785.65,0.758]
[1754609669876,0.84346505,786.21,785.65,0.758]
[1754609670080,0.84346505,786.2,785.65,0.758]
[1754609670281,0.84346505,786.19,785.65,0.758]
[1754609670479,0.84346505,786.18,785.65,0.758]
[1754609670682,0.84346505,786.17,785.65,0.758]
[1754609670980,0.84346505,786.16,785.65,0.758]
[1754609671282,0.84346505,786.15,785.65,0.758]
[1754609671578,0.84346505,786.14,785.65,0.758]
[1754609671882,0.84346505,786.13,785.65,0.758]
[1754609672081,0.84346505,786.12,785.65,0.758]
[1754609672284,0.84346505,786.11,785.65,0.758]
[1754609672480,0.84346505,786.1,785.65,0.758]
[1754609672682,0.84346505,786.09,785.65,0.758]
[1754609672880,0.84346505,786.08,785.65,0.758]
[1754609673084,0.84346505,786.07,785.65,0.758]
[1754609673286,0.84346505,786.06,785.65,0.758]
[1754609673479,0.84346505,786.05,785.65,0.758]
[1754609673685,0.84346505,786.04,785.65,0.758]
[1754609673881,0.84346505,786.03,785.65,0.758]
[1754609674091,0.84499731,786.02,785.65,0.758]
[1754609674384,0.8528601,786.31,785.65,0.758]
[1754609674589,0.84501891,786.3,785.65,0.758]
[1754609674784,0.84501891,786.29,785.65,0.758]
[1754609675082,0.84501891,786.28,785.65,0.758]
[1754609675288,0.84501891,786.27,785.65,0.758]
[1754609675484,0.84501891,786.26,785.65,0.758]
[1754609675784,0.84501891,786.25,785.65,0.758]
[1754609676087,0.84501891,786.24,785.65,0.758]
[1754609676287,0.84501891,786.23,785.65,0.758]
[1754609676485,0.84501891,786.22,785.65,0.758]
[1754609676785,0.84501891,786.21,785.65,0.758]
[1754609676984,0.84501891,786.2,785.65,0.758]
[1754609677184,0.84501891,786.19,785.65,0.758]
[1754609677387,0.84501891,786.18,785.65,0.758]
[1754609677588,0.84501891,786.17,785.65,0.758]
[1754609677783,0.84501891,786.16,785.65,0.758]
[1754609678087,0.84501891,786.15,785.65,0.758]
[1754609678388,0.84501891,786.14,785.65,0.758]
[1754609678687,0.84501891,786.13,785.64,1.09]
[1754609678889,0.84501891,786.12,785.64,1.09]
[1754609679187,0.84501891,786.11,785.64,1.09]
[1754609679488,0.84501891,786.1,785.64,1.09]
[1754609679688,0.84501891,786.09,785.64,1.09]
[1754609679890,0.8528601,786.4,785.64,1.09]
[1754609680187,0.84519525,786.39,785.64,1.09]
[1754609680386,0.84519525,786.38,785.64,1.09]
[1754609680591,0.84519525,786.37,785.64,1.09]
[1754609680791,0.84519525,786.36,785.64,1.09]
[1754609680989,0.84519525,786.35,785.64,1.09]
[1754609681191,0.84519525,786.34,785.64,1.09]
[1754609681391,0.84519525,786.33,785.64,1.09]
[1754609681597,0.84519525,786.32,785.71,0.85078448]
[1754609681793,0.84519525,786.31,785.71,0.85078448]
[1754609681995,0.84519525,786.3,785.71,0.85078448]
[1754609682201,0.84519525,786.29,785.71,0.85078448]
[1754609682500,0.84519525,786.28,785.71,0.85078448]
[1754609682698,0.84519525,786.27,785.71,0.85078448]
[1754609682897,0.84519525,786.27,785.65,0.962]
[1754609682898,0.84519525,786.26,785.72,0.85078448]
[1754609683095,1.7048236,787.0,785.65,0.962]
[1754609683096,0.84519525,786.25,785.74,0.85078448]
[1754609683300,0.22133673,786.65,785.77,0.85078448]
[1754609683500,0.84492484,786.64,785.77,0.85078448]
[1754609683698,0.84492484,786.63,785.82,0.85078448]
[1754609683900,0.84492484,786.62,785.82,0.85078448]
[1754609684101,0.84492484,786.61,785.82,0.85078448]
[1754609684302,0.84492484,786.6,785.81,0.85078448]
[1754609684599,0.84492484,786.59,785.81,0.85078448]
[1754609684797,0.84492484,786.58,785.82,0.85078448]
[1754609685004,0.84492484,786.57,785.82,0.85078448]
[1754609685204,0.84492484,786.56,785.82,0.85078448]
[1754609685502,0.84492484,786.55,785.81,0.85078448]
[1754609685701,0.84492484,786.54,785.81,0.85078448]
[1754609685901,0.84492484,786.53,785.81,0.85078448]
[1754609686101,0.84492484,786.52,785.81,0.85078448]
[1754609686400,0.84492484,786.51,785.8,0.85078448]
[1754609686603,0.84492484,786.5,785.8,0.85078448]
[1754609686801,0.84492484,786.49,785.8,0.85078448]
[1754609687003,0.84492484,786.48,785.8,0.85078448]
[1754609687204,0.84492484,786.47,785.8,0.85078448]
[1754609687404,0.84492484,786.46,785.8,0.85078448]
[1754609687606,0.84492484,786.45,785.8,0.85078448]
[1754609687799,0.84492484,786.44,785.8,0.85078448]
[1754609688004,0.84492484,786.43,785.8,0.85078448]
[1754609688206,0.84492484,786.42,785.8,0.85078448]
[1754609688505,0.84492484,786.41,785.79,0.85078448]
[1754609688702,0.84492484,786.4,785.79,0.85078448]
[1754609689005,0.84492484,786.39,785.79,0.85078448]
[1754609689200,0.84492484,786.38,785.79,0.85078448]
[1754609689401,0.84492484,786.37,785.79,0.85078448]
[1754609689604,0.84492484,786.36,785.79,0.85078448]
[1754609689802,0.22133673,786.65,785.79,0.85078448]
[1754609690002,0.84400549,786.64,785.79,0.85078448]
[1754609690200,0.84400549,786.63,785.79,0.85078448]
[1754609690405,0.84400549,786.62,785.78,0.85078448]
[1754609690606,0.84400549,786.61,785.78,0.85078448]
[1754609690807,0.84400549,786.6,785.78,0.85078448]
[1754609691003,0.84400549,786.59,785.78,0.85078448]
[1754609691207,0.84400549,786.58,785.78,0.85078448]
[1754609691502,0.84400549,786.57,785.78,0.85078448]
[1754609691706,0.84400549,786.56,785.78,0.85078448]
[1754609691906,0.84400549,786.55,785.78,0.85078448]
[1754609692107,0.84400549,786.54,785.78,0.85078448]
[1754609692404,0.84400549,786.53,785.77,0.85078448]
[1754609692604,0.84400549,786.52,785.77,0.85078448]
[1754609692808,0.84400549,786.51,785.77,0.85078448]
[1754609693007,0.84400549,786.5,785.77,0.85078448]
[1754609693307,0.84400549,786.49,785.8,0.85078448]
[1754609693507,0.84400549,786.48,785.81,0.85078448]
[1754609693806,0.84400549,786.47,785.81,0.85078448]
[1754609694006,0.84400549,786.46,785.81,0.85078448]
[1754609694201,0.84400549,786.45,785.81,0.85078448]
[1754609694404,0.84400549,786.44,785.81,0.85078448]
[1754609694607,0.84400549,786.43,785.81,0.85078448]
[1754609694808,0.84400549,786.42,785.81,0.85078448]
[1754609695109,0.84400549,786.41,785.81,0.85078448]
[1754609695310,0.84400549,786.4,785.8,0.85078448]
[1754609695604,0.84345035,786.39,785.82,0.85078448]
[1754609695808,0.84345035,786.39,785.8,0.85078448]
[1754609696008,0.84345035,786.39,785.81,0.85078448]
[1754609696205,0.84345035,786.39,785.82,0.85078448]
[1754609696504,0.22133673,786.65,785.81,0.85078448]
[1754609696705,0.84341314,786.64,785.81,0.85078448]
[1754609696902,0.22133673,786.65,785.81,0.85078448]
[1754609697408,0.22133673,786.65,785.82,0.85078448]
[1754609697806,0.8433777,786.64,785.82,0.85078448]
[1754609698009,0.8433777,786.63,785.82,0.85078448]
[1754609698210,0.8433777,786.62,785.82,0.85078448]
[1754609698412,0.8433777,786.61,785.82,0.85078448]
[1754609698607,0.8433777,786.6,785.82,0.85078448]
[1754609698807,0.8433777,786.59,785.82,0.85078448]
[1754609699010,0.8433777,786.58,785.82,0.85078448]
[1754609699207,0.8433777,786.57,785.83,0.85078448]
[1754609699407,0.8433777,786.56,785.83,0.85078448]
[1754609699712,0.8433777,786.55,785.84,1.042]
[1754609699912,0.8433777,786.54,785.84,1.042]
[1754609700208,0.22133673,786.65,785.84,1.042]
[1754609700209,0.8433777,786.53,785.84,1.042]
[1754609700512,0.8433777,786.52,785.84,1.042]
[1754609700709,0.8433777,786.51,785.85,0.77]
[1754609701012,0.84307212,786.5,785.85,0.77]
[1754609701214,0.84307212,786.49,785.85,0.77]
[1754609701412,0.84307212,786.48,785.85,0.77]
[1754609701607,0.84307212,786.47,785.85,0.77]
[1754609701911,0.84307212,786.46,785.86,1.143]
[1754609702107,0.84307212,786.45,785.86,1.143]
[1754609702310,0.84307212,786.44,785.86,1.143]
[1754609702510,0.84307212,786.43,785.86,1.143]
[1754609702711,0.84307212,786.42,785.86,1.143]
[1754609702909,0.84289051,786.41,785.86,1.143]
[1754609703209,0.22133673,786.65,785.86,1.143]
[1754609703412,0.8428491,786.64,785.86,1.143]
[1754609703608,0.8428491,786.63,785.86,1.143]
[1754609703809,0.8428491,786.62,785.86,1.143]
[1754609704109,0.8428491,786.61,785.86,1.143]
[1754609704308,0.8428491,786.6,785.86,1.143]
[1754609704511,0.8428491,786.59,785.86,1.143]
[1754609704812,0.8428491,786.58,785.86,1.143]
[1754609705009,0.8428491,786.57,785.86,1.143]
[1754609705310,0.8428491,786.56,785.86,1.143]
[1754609705509,0.8428491,786.55,785.86,1.143]
[1754609705810,0.8428491,786.54,785.86,1.143]
[1754609706010,0.8428491,786.53,785.86,1.143]
[1754609706213,0.8428491,786.52,785.86,1.143]
[1754609706507,0.8428491,786.51,785.86,1.143]
[1754609706713,0.22133673,786.65,785.86,1.143]
[1754609706714,0.8428491,786.5,785.86,1.143]
[1754609706911,0.84255068,786.49,785.86,1.143]
[1754609707110,0.84255068,786.48,785.86,1.143]
[1754609707311,0.84255068,786.47,785.86,1.143]
[1754609707508,0.84255068,786.46,785.86,1.143]
[1754609707713,0.84255068,786.45,785.86,1.143]
[1754609707909,0.22133673,786.65,785.86,1.143]
[1754609707910,0.84255068,786.44,785.86,1.143]
[1754609708114,0.84255068,786.43,785.86,1.143]
[1754609708312,0.22133673,786.65,785.86,1.143]
[1754609708510,0.84240665,786.64,785.86,1.143]
[1754609708713,0.84240665,786.63,785.86,1.143]
[1754609708913,0.84240665,786.62,785.86,1.143]
[1754609709112,0.84240665,786.61,785.86,1.143]
[1754609709411,0.84240665,786.6,785.86,1.143]
[1754609709610,0.84240665,786.59,785.86,1.143]
[1754609709912,0.84240665,786.58,785.86,1.143]
[1754609710115,0.84240665,786.57,785.86,1.143]
[1754609710312,0.84240665,786.56,785.86,1.143]
[1754609710517,0.22133673,786.65,785.86,1.143]
[1754609710518,0.84240665,786.55,785.86,1.143]
[1754609710714,0.84240665,786.54,785.86,1.143]
[1754609711014,0.84240665,786.53,785.86,1.143]
[1754609711213,0.84240665,786.52,785.86,1.143]
[1754609711518,0.84240665,786.51,785.86,1.143]
[1754609711718,0.84240665,786.5,785.86,1.143]
[1754609712019,0.84240665,786.49,785.86,1.143]
[1754609712217,0.84240665,786.48,785.86,1.143]
[1754609712519,0.22129381,786.77,785.86,1.143]
[1754609712715,0.84220334,786.76,785.86,1.143]
[1754609713015,0.84220334,786.75,785.86,1.143]
[1754609713218,0.84220334,786.74,785.86,1.143]
[1754609713516,0.84220334,786.73,785.86,1.143]
[1754609713821,0.84220334,786.72,785.86,1.143]
[1754609714019,0.84220334,786.71,785.86,1.143]
[1754609714219,0.84220334,786.7,785.86,1.143]
[1754609714420,0.84220334,786.69,785.86,1.143]
[1754609714618,0.84220334,786.68,785.86,1.143]
[1754609714819,0.84220334,786.67,785.86,1.143]
[1754609715020,0.84220334,786.66,785.86,1.143]
[1754609715219,0.84220334,786.65,785.86,1.143]
[1754609715518,0.84220334,786.64,785.86,1.143]
[1754609715737,0.84220334,786.63,785.86,1.143]
[1754609715920,0.84220334,786.62,785.86,1.143]
[1754609716121,0.84220334,786.61,785.86,1.143]
[1754609716320,0.84220334,786.6,785.86,1.143]
[1754609716521,0.84220334,786.59,785.86,1.143]
[1754609716721,0.84220334,786.58,785.86,1.143]
[1754609717022,0.84220334,786.57,785.86,1.143]
[1754609717220,0.84220334,786.56,785.86,1.143]
[1754609717421,0.84220334,786.55,785.86,1.143]
[1754609717622,0.84220334,786.54,785.86,1.143]
[1754609717826,0.84220334,786.53,785.86,1.143]
[1754609718024,0.84220334,786.52,785.86,1.143]
[1754609718225,0.22129381,786.77,785.86,1.143]
[1754609718424,0.84227451,786.76,785.86,1.143]
[1754609718724,0.84225544,786.75,785.86,1.143]
[1754609719025,0.84225544,786.74,785.86,1.143]
[1754609719228,0.22129381,786.77,785.86,1.143]
[1754609719229,0.84225544,786.73,785.86,1.143]
[1754609719428,0.84225544,786.72,785.86,1.143]
[1754609719724,0.84225544,786.71,785.86,1.143]
[1754609719929,0.84225544,786.7,785.86,1.143]
[1754609720228,0.84225544,786.69,785.86,1.99378448]
[1754609720429,0.84225544,786.68,785.86,1.99378448]
[1754609720629,0.84225544,786.67,785.86,1.99378448]
[1754609720925,0.84225544,786.66,785.86,1.143]
[1754609721132,0.84225544,786.65,785.86,1.143]
[1754609721329,0.84225544,786.64,785.86,1.143]
[1754609721628,0.84225544,786.63,785.86,1.143]
[1754609721829,0.84225544,786.62,785.86,1.143]
[1754609722029,0.84225544,786.61,785.86,1.143]
[1754609722228,0.84225544,786.6,785.87,0.865]
[1754609722428,0.84225544,786.59,785.87,0.865]
[1754609722628,0.84225544,786.58,785.87,0.865]
[1754609722925,0.84225544,786.57,785.87,0.865]
[1754609723124,0.84225544,786.56,785.87,0.865]
[1754609723326,0.84225544,786.55,785.87,0.865]
[1754609723525,0.84225544,786.54,785.87,0.865]
[1754609723726,0.84225544,786.53,785.87,0.865]
[1754609724031,0.84225544,786.52,785.87,0.865]
[1754609724231,0.84225544,786.51,785.87,0.865]
[1754609724525,0.84225544,786.5,785.87,0.865]
[1754609724729,0.22129381,786.77,785.87,0.865]
[1754609724929,0.84257836,786.76,785.87,0.865]
[1754609725126,0.84257836,786.75,785.87,0.865]
[1754609725426,0.84257836,786.74,785.87,0.865]
[1754609725626,0.84257836,786.73,785.87,0.865]
[1754609725932,0.84257836,786.72,785.9,0.85078448]
[1754609726132,0.84257836,786.71,785.9,0.85078448]
[1754609726427,0.84257836,786.7,785.9,0.85078448]
[1754609726629,0.84257836,786.69,785.91,1.77578448]
[1754609726828,0.84270291,786.68,785.91,1.77578448]
[1754609727027,0.84270291,786.67,785.92,0.85078448]
[1754609727229,0.84270291,786.66,785.92,0.85078448]
[1754609727429,0.84278231,786.65,785.93,0.85078448]
[1754609727631,0.84278231,786.64,785.93,0.85078448]
[1754609727833,0.84278231,786.63,785.93,0.85078448]
[1754609728031,0.84278231,786.62,785.94,0.85078448]
[1754609728235,0.84278231,786.61,785.94,0.85078448]
[1754609728437,0.84278231,786.6,785.94,0.85078448]
[1754609728636,0.84278231,786.59,785.94,0.85078448]
[1754609728833,0.84278231,786.58,785.94,0.85078448]
[1754609729036,0.84278231,786.57,785.94,0.85078448]
[1754609729236,0.84278231,786.56,785.94,0.85078448]
[1754609729432,0.84278231,786.55,785.94,0.85078448]
[1754609729637,0.84278231,786.54,785.94,0.85078448]
[1754609729840,0.84278231,786.53,785.94,0.85078448]
[1754609730038,0.84278231,786.52,785.94,0.85078448]
[1754609730234,0.84278231,786.51,785.94,0.85078448]
[1754609730533,0.84278231,786.5,785.95,0.85078448]
[1754609730735,0.84278231,786.49,785.95,0.85078448]
[1754609730935,0.84278231,786.48,785.95,0.85078448]
[1754609731136,0.84278231,786.47,785.95,0.85078448]
[1754609731336,0.84278231,786.46,785.96,0.85134645]
[1754609731537,1.07555486,786.77,785.92,0.85134645]
[1754609731736,0.8432251,786.76,785.91,1.77634645]
[1754609731941,0.8432251,786.75,785.91,1.77634645]
[1754609732240,0.85426105,786.69,785.91,0.925]
[1754609732436,1.69748615,786.68,785.91,0.925]
[1754609732637,0.8432251,786.67,785.91,0.925]
[1754609733442,0.84364977,786.66,785.91,0.925]
[1754609733741,0.84364977,786.65,785.91,0.925]
[1754609733937,0.84364977,786.64,785.91,0.925]
[1754609734137,0.84364977,786.63,785.91,0.925]
[1754609734337,0.84364977,786.62,785.91,0.925]
[1754609734536,0.84364977,786.61,785.91,0.925]
[1754609734742,0.84364977,786.6,785.91,0.925]
[1754609734940,0.84364977,786.59,785.91,0.925]
[1754609735136,0.84364977,786.58,785.91,0.925]
[1754609735438,0.84364977,786.57,785.91,0.925]
[1754609735642,0.84364977,786.56,785.91,0.925]
[1754609735838,0.84364977,786.55,785.91,0.925]
[1754609736037,0.84364977,786.54,785.91,0.925]
[1754609736338,0.84364977,786.53,785.91,0.925]
[1754609736541,0.84364977,786.52,785.91,0.925]
[1754609736739,0.84364977,786.51,785.91,0.925]
[1754609736938,0.84364977,786.5,785.91,0.925]
[1754609737142,0.84364977,786.49,785.91,0.925]
[1754609737343,0.84364977,786.48,785.91,0.925]
[1754609737543,0.84364977,786.47,785.91,0.925]
[1754609737843,0.84364977,786.46,785.91,0.925]
[1754609738039,0.84364977,786.45,785.91,0.925]
[1754609738243,0.84364977,786.44,785.91,0.925]
[1754609738444,0.84364977,786.43,785.91,0.925]
[1754609738640,0.84364977,786.42,785.91,0.925]
[1754609738840,0.84364977,786.41,785.91,0.925]
[1754609739045,0.84364977,786.4,785.91,0.925]
[1754609739341,0.84492021,786.39,785.91,0.925]
[1754609739546,0.84492021,786.38,785.91,1.77634645]
[1754609739845,0.84492021,786.37,785.91,1.77634645]
[1754609740041,0.84492021,786.36,785.91,1.77634645]
[1754609740240,0.84492021,786.35,785.91,1.77634645]
[1754609740444,0.84492021,786.34,785.92,0.85134645]
[1754609740742,0.84492021,786.33,785.92,0.85134645]
[1754609740942,0.84492021,786.32,785.92,0.85134645]
[1754609741140,0.84492021,786.31,785.92,0.85134645]
[1754609741343,0.84492021,786.3,785.93,0.85134645]
[1754609741546,0.8456751,786.29,785.94,0.85134645]
[1754609741845,0.85426105,786.57,785.94,0.85134645]
[1754609742042,0.8456751,786.56,785.94,0.85134645]
[1754609742243,0.8456751,786.55,785.94,0.85134645]
[1754609742448,0.8456751,786.54,785.95,0.85134645]
[1754609742648,0.8456751,786.53,785.95,0.85134645]
[1754609742844,0.8456751,786.52,785.95,0.85134645]
[1754609743047,0.8456751,786.51,785.95,0.85134645]
[1754609743347,0.8456751,786.5,785.95,0.85134645]
[1754609743543,0.8456751,786.49,785.95,0.85134645]
[1754609743844,0.8456751,786.48,785.95,0.85134645]
[1754609744043,0.8456751,786.47,785.95,0.85134645]
[1754609744242,0.8456751,786.46,785.95,0.85134645]
[1754609744444,0.8456751,786.45,785.95,0.85134645]
[1754609744648,0.85426105,786.56,785.95,0.85134645]
[1754609744649,0.8456751,786.44,785.95,0.85134645]
[1754609744850,0.8456751,786.43,785.95,0.85134645]
[1754609745046,0.8456751,786.42,785.95,0.85134645]
[1754609745248,0.8456751,786.41,785.96,0.879]
[1754609745445,0.8456751,786.4,785.96,0.879]
[1754609745649,0.8456751,786.39,785.96,0.879]
[1754609745850,0.8456751,786.38,785.96,0.879]
[1754609746152,0.8456751,786.37,785.97,0.9]
[1754609746345,0.8456751,786.36,785.97,0.9]
[1754609746547,0.8456751,786.35,785.97,0.9]
[1754609746751,0.8456751,786.34,785.97,0.9]
[1754609746948,0.8456751,786.33,785.97,0.9]
[1754609747151,0.8456751,786.32,785.97,0.9]
[1754609747346,0.8456751,786.31,785.97,0.9]
[1754609747547,0.8456751,786.3,785.97,0.9]
[1754609747750,0.8456751,786.29,785.97,0.9]
[1754609748047,0.84601311,786.28,785.97,0.9]
[1754609748249,0.85426105,786.57,785.97,0.9]
[1754609748451,0.84602902,786.56,785.97,0.9]
[1754609748752,0.84602902,786.55,785.97,0.9]
[1754609749050,0.84602902,786.54,785.97,0.9]
[1754609749254,0.84602902,786.53,785.97,0.9]
[1754609749452,0.84602902,786.52,785.97,0.9]
[1754609749748,0.84602902,786.51,785.97,0.9]
[1754609749952,0.84602902,786.5,785.97,0.9]
[1754609750149,0.84602902,786.49,785.97,0.9]
[1754609750350,0.84602902,786.48,785.98,0.753]
[1754609750556,0.84602902,786.47,785.98,0.753]
[1754609750754,0.84602902,786.46,785.98,0.753]
[1754609751057,0.84602902,786.45,785.98,0.753]